Cogmind - Beta 14 @@@ ROGUE MODE // 2024.08.25 @ 13:15:39 Player: Mallow Result: Destroyed by S-27 Virus with Autogun Performance ------------- Evolutions (4) 2000 Regions Visited (11) 2200 Robots Destroyed (26) 130 Value Destroyed (379) 379 Prototype IDs (24) 480 Alien Tech Used (0) 0 Bonus (479) 479 TOTAL SCORE: 5668 Bonus ------- Follower Combat Kills 105 Entered DSFs 500 Aligned with FarCom 300 Friendly Fire -426 Cogmind --------- Core Integrity 0/850 Matter 269/300 Energy 98/100 System Corruption 6% Temperature Cool (0) Movement Core (50) Location -6/Lower Caves Parts ------- > --- POWER (1) -------- (None) > --- PROPULSION (4) --- (None) > --- UTILITY (8) ------ Advanced Signal Interpreter Hacking Suite > --- WEAPON (2) ------- (None) > --- INVENTORY (5) ---- Micro Nuclear Core Advanced Power Amplifier Improved Cryofiber Web Structural Scanner Peak State ------------ > --- POWER ------------ Micro Nuclear Core > --- PROPULSION ------- Aerolev Unit Gravmag System Gravmag Array > --- UTILITY ---------- Small Storage Unit Advanced Weight Redist. System Structural Scanner Advanced Signal Interpreter Improved Terrain Scanner Advanced Terrain Scan Processor Improved Utility Shielding Hacking Suite > --- WEAPON ----------- Improved Proton Missile Launcher Chainsword > --- INVENTORY -------- Improved Deuterium Engine Hybrid Deuterium Engine Advanced Power Amplifier Advanced Power Amplifier Improved Cryofiber Web Advanced ECM Suite [Rating: 57] Favorites ----------- Power Light Ion Engine Engine Light Ion Engine Power Core Micro Nuclear Core Propulsion Aerolev Unit Treads Light Treads Hover Unit Aerolev Unit Utility Small Storage Unit Device Structural Scanner Storage Small Storage Unit Processor Targeting Computer Hackware Hacking Suite Protection Improved Utility Shielding Weapon Ripper Energy Gun Small Laser Ballistic Gun Assault Rifle Ballistic Cannon Bore Cannon Launcher Grenade Launcher Special Weapon Field Lobotomy Kit Slashing Weapon Ripper Build | -11 -10 -10 -10 -9 -8 -7 -7 -7 -7 -6 -6 ------- Run | Yrd Mat Min Exi Min Mat Fac Was Fac DSF Fac Low Slots Evolved 8 | . . . . . 4 2 . . . 2 . Power . | . . . . . . . . . . . . Propulsion 2 | . . . . . 2 . . . . . . Utility 6 | . . . . . 2 2 . . . 2 . Weapon . | . . . . . . . . . . . . Parts Attached 46 | 6 4 3 1 . 10 7 . . 1 9 5 Power 6 | 1 . . . . 2 . . . . 1 2 Engine 4 | 1 . . . . 1 . . . . . 2 Core 2 | . . . . . 1 . . . . 1 . Reactor . | . . . . . . . . . . . . Propulsion 10 | 2 . . . . 6 . . . 1 1 . Treads 4 | 2 . . . . 2 . . . . . . Leg . | . . . . . . . . . . . . Wheel . | . . . . . . . . . . . . Hover 6 | . . . . . 4 . . . 1 1 . Flight . | . . . . . . . . . . . . Utility 18 | 1 1 1 . . 2 5 . . . 6 2 Device 10 | . . 1 . . . 3 . . . 4 2 Storage 2 | 1 . . . . . 1 . . . . . Processor 3 | . 1 . . . . . . . . 2 . Hackware 2 | . . . . . 2 . . . . . . Protection 1 | . . . . . . 1 . . . . . Artifact . | . . . . . . . . . . . . Weapon 12 | 2 3 2 1 . . 2 . . . 1 1 Energy Gun 1 | 1 . . . . . . . . . . . Energy Cannon . | . . . . . . . . . . . . Ballistic Gun 2 | 1 1 . . . . . . . . . . Ballistic Cannon 1 | . . 1 . . . . . . . . . Launcher 5 | . 2 . . . . 1 . . . 1 1 Special Weapon 1 | . . . 1 . . . . . . . . Impact Weapon . | . . . . . . . . . . . . Slashing Weapon 2 | . . 1 . . . 1 . . . . . Piercing Weapon . | . . . . . . . . . . . . Special Melee Weapon . | . . . . . . . . . . . . Unidentified Prototypes 1 | . . . . . 1 . . . . . . Parts Lost 18 | . . 1 . . . 1 . . 2 . 14 Power 2 | . . . . . . . . . . . 2 Propulsion 4 | . . . . . . . . . 1 . 3 Utility 9 | . . . . . . 1 . . 1 . 7 Weapon 3 | . . 1 . . . . . . . . 2 Highest Loss Streak 7 | . . 1 . . . 1 . . 2 . 7 To Critical Strikes 1 | . . . . . . 1 . . . . . Average Slot Usage (%) 93 | . 99 99 100 100 83 93 100 100 96 75 79 Engine 9 | . 14 14 14 14 6 7 7 7 7 . 1 Core 1 | . . . . . 3 . . . . 5 4 Treads 14 | . 28 28 28 28 12 . . . . . . Hover 12 | . . . . . 22 30 30 30 30 14 13 Device 11 | . . 13 14 14 9 11 15 15 15 17 18 Storage 10 | . 14 14 14 14 9 7 7 7 7 6 5 Processor 3 | . 13 . . . . . . . . 8 12 Hackware 5 | . . . . . 3 15 15 15 11 6 6 Protection 2 | . . . . . . 4 7 7 7 6 4 Ballistic Gun 3 | . 16 8 . . . . . . . . . Launcher 4 | . 10 11 . . . . 7 7 7 1 4 Special Weapon 4 | . . . 5 14 9 6 . . . . . Slashing Weapon 6 | . . 5 14 14 9 7 7 7 7 6 4 Peak Build Rating 57 | 6 7 14 19 20 43 52 46 46 46 56 57 Average Rating 28 | 4 6 9 15 19 32 48 46 45 43 40 49 On Entrance 27 | . 6 7 14 19 20 43 46 46 46 31 52 Naked Turns . | . . . . . . . . . . . . Heaviest Build 30 | 11 13 21 21 20 27 30 29 29 29 25 28 Greatest Support 80 | 40 40 40 40 40 80 32 32 32 33 37 37 Greatest Overweight (x) 2 | . . . . . 2 . . . 1 . 1 Average Overweight (x) . | . . . . . . . . . . . . Largest Inventory Capacity 8 | 8 8 8 8 8 8 8 8 8 8 8 8 Average Capacity 7 | 6 8 8 8 8 8 8 8 8 8 8 7 Most Carried 8 | 4 7 7 7 8 8 8 8 8 8 8 7 Average Carried 6 | 1 5 6 6 7 6 7 8 7 7 6 5 Final Capacity 8 | 8 8 8 8 8 8 8 8 8 8 8 5 Final Carried 8 | 1 7 6 6 8 6 8 8 8 8 7 4 Class Distribution -------------------- 58% | Mutant 31% | Hacker-Mutant 10% | Scout Dominant Class ---------------- Mutant | -10/Materials Mutant | -10/Mines Mutant | -10/Exiles Mutant | -9/Mines Mutant | -8/Materials Hacker-Mutant | -7/Factory Hacker-Mutant | -7/Waste Hacker-Mutant | -7/Factory Hacker-Mutant | -7/DSF Scout | -6/Factory Mutant | -6/Lower Caves Resources | -11 -10 -10 -10 -9 -8 -7 -7 -7 -7 -6 -6 ----------- Run | Yrd Mat Min Exi Min Mat Fac Was Fac DSF Fac Low Matter Collected 814 | 243 221 57 . 10 78 115 10 . . 80 . Remotely . | . . . . . . . . . . . . Salvage Created 638 | . 295 12 . . 79 252 . . . . . Parts 56 | . 23 1 . . 4 28 . . . . . Haulers Intercepted . | . . . . . . . . . . . . Recyclers Shooed . | . . . . . . . . . . . . Parts Field Recycled . | . . . . . . . . . . . . Retrieved Matter . | . . . . . . . . . . . . Parts Self-Destructed . | . . . . . . . . . . . . Prevented . | . . . . . . . . . . . . Kills | -11 -10 -10 -10 -9 -8 -7 -7 -7 -7 -6 -6 ------- Run | Yrd Mat Min Exi Min Mat Fac Was Fac DSF Fac Low Combat Hostiles Destroyed 14 | . 9 2 . . . 3 . . . . . Melee 3 | . . . . . . 3 . . . . . Guns 4 | . 4 . . . . . . . . . . AOE 7 | . 5 2 . . . . . . . . . Classes Destroyed 9 | . 5 1 . . 1 2 . . . . . Worker 4 | . 2 . . . 1 1 . . . . . Builder 3 | . 1 1 . . . 1 . . . . . Tunneler 1 | . . . . . . 1 . . . . . Recycler 1 | . . . . . 1 . . . . . . Watcher 3 | . 3 . . . . . . . . . . Swarmer 8 | . 6 . . . . 2 . . . . . Grunt 3 | . 3 . . . . . . . . . . Programmer 3 | . . . . . . 3 . . . . . Assembled 2 | . . 2 . . . . . . . . . Best Kill Streak 5 | . 5 3 . . 1 2 . . . . . Combat Bots Only 3 | . 3 2 . . . 2 . . . . . Max Kills in Single Turn 2 | . 2 2 . . 1 1 . . . . . Gunslinging . | . . . . . . . . . . . . Exploded 2 | . 2 1 . . . . . . . . . Melee 1 | . . . . . . 1 . . . . . Uniques/NPCs Destroyed . | . . . . . . . . . . . . Combat | -11 -10 -10 -10 -9 -8 -7 -7 -7 -7 -6 -6 -------- Run | Yrd Mat Min Exi Min Mat Fac Was Fac DSF Fac Low Hostile Shots Fired 312 | . 30 15 . . 2 77 . . 13 . 175 Missed 134 | . 6 6 . . 2 38 . . 7 . 75 Damage Taken 2903 | . 360 95 . . . 435 . . 177 . 1836 Core 1089 | . 67 . . . . 113 . . 52 . 857 Absorbed by Shields . | . . . . . . . . . . . . Redirected to Shielding 68 | . . . . . . . . . 22 . 46 Core Remaining (%) 87 | 100 . . . 73 100 . . . 76 . . Volleys Fired 42 | . 26 4 . . 1 7 . . . . 4 Largest 2 | . 2 1 . . 1 1 . . . . 1 Hottest 57 | . 50 57 . . . 39 . . . . 43 Shots Fired 59 | . 43 4 . . 1 7 . . . . 4 Gun 38 | . 38 . . . . . . . . . . Cannon 2 | . . 2 . . . . . . . . . Launcher 14 | . 5 2 . . . 3 . . . . 4 Special 5 | . . . . . 1 4 . . . . . Kinetic 40 | . 38 2 . . . . . . . . . Thermal . | . . . . . . . . . . . . Explosive 7 | . 5 2 . . . . . . . . . Electromagnetic 7 | . . . . . . 3 . . . . 4 Robot Hit Streak 13 | . 13 4 . . 1 3 . . . . 4 Robot Miss Streak 4 | . 4 2 . . . 1 . . . . . Penetration Max . | . . . . . . . . . . . . Secondary Targets . | . . . . . . . . . . . . Shots Hit Robots 56 | . 30 3 . . 3 17 . . . . 3 Core Hits 37 | . 20 5 . . 1 10 . . . . 1 Critical Kills . | . . . . . . . . . . . . Critical Parts Destroyed . | . . . . . . . . . . . . Critical Strikes 1 | . . . . . . 1 . . . . . Sever 1 | . . . . . . 1 . . . . . Melee Attacks 63 | . . 9 . . 5 34 . 2 . 8 5 Impact . | . . . . . . . . . . . . Slashing 63 | . . 9 . . 5 34 . 2 . 8 5 Piercing . | . . . . . . . . . . . . Sneak Attacks 8 | . . 1 . . 2 5 . . . . . Combat Hostiles . | . . . . . . . . . . . . Follow-up Attacks . | . . . . . . . . . . . . Damage Inflicted 1911 | . 718 220 . . 137 744 . . . . 92 Guns 340 | . 340 . . . . . . . . . . Cannons . | . . . . . . . . . . . . Explosions 732 | . 378 157 . . . 105 . . . . 92 Melee 836 | . . 60 . . 137 639 . . . . . Ramming 3 | . . 3 . . . . . . . . . Kinetic 340 | . 340 . . . . . . . . . . Thermal 13 | . . . . . . 13 . . . . . Explosive 535 | . 378 157 . . . . . . . . . Electromagnetic 184 | . . . . . . 92 . . . . 92 Impact . | . . . . . . . . . . . . Slashing 836 | . . 60 . . 137 639 . . . . . Piercing . | . . . . . . . . . . . . Highest Corruption 6 | . . . . . . 6 6 6 6 . 6 Average Corruption 2 | . . . . . . 2 6 6 6 . 6 Corruption Purged . | . . . . . . . . . . . . Corruption Blocked . | . . . . . . . . . . . . Effects 32 | . . . . . . 23 3 1 2 . 3 Message Errors 5 | . . . . . . 4 . . 1 . . Matter Fused 4 | . . . . . . 3 . . . . 1 Heat Flow Errors 9 | . . . . . . 6 2 . . . 1 Energy Discharges 6 | . . . . . . 5 1 . . . . Data Loss (minor) 5 | . . . . . . 3 . 1 . . 1 Data Loss (major) 2 | . . . . . . 1 . . 1 . . Alerts 1 | . . . . . . 1 . . . . . Overload Shots . | . . . . . . . . . . . . Overflow Damage 62 | . . 20 . . 37 5 . . . . . Projectiles . | . . . . . . . . . . . . Explosions . | . . . . . . . . . . . . Melee 62 | . . 20 . . 37 5 . . . . . Knockbacks . | . . . . . . . . . . . . Impact . | . . . . . . . . . . . . Kinetic . | . . . . . . . . . . . . Secondary . | . . . . . . . . . . . . Self-Inflicted Damage 155 | . 101 . . . . 24 . . . . 30 Shots 8 | . 4 . . . . 1 . . . . 3 Rammed 2 | . . 2 . . . . . . . . . Targets Rammed 2 | . . 2 . . . . . . . . . Kicked . | . . . . . . . . . . . . Crushed . | . . . . . . . . . . . . Highest Temperature 267 | . 2 32 . . . 267 130 . . . 228 Average Temperature 95 | . 2 18 . . . 103 72 . . . 103 Received Heat Transfer 487 | . 84 9 . . . 60 . . . . 334 Effects 1 | . . . . . . 1 . . . . . Energy Bleed 1 | . . . . . . 1 . . . . . Siege Activations . | . . . . . . . . . . . . Robots Corrupted . | . . . . . . . . . . . . Combat Hostiles . | . . . . . . . . . . . . Parts Fried . | . . . . . . . . . . . . Impact Corruptions . | . . . . . . . . . . . . Robots Melted . | . . . . . . . . . . . . Combat Hostiles . | . . . . . . . . . . . . Parts Melted . | . . . . . . . . . . . . Heat Transferred 50 | . . . . . . 50 . . . . . Parts Sabotaged . | . . . . . . . . . . . . Parts Stolen . | . . . . . . . . . . . . Parts Stripped . | . . . . . . . . . . . . Power Chain Reactions 1 | . . . . . . 1 . . . . . Alert | -11 -10 -10 -10 -9 -8 -7 -7 -7 -7 -6 -6 ------- Run | Yrd Mat Min Exi Min Mat Fac Was Fac DSF Fac Low Peak Influence 206 | . 206 69 . . 76 168 13 11 9 34 . Initial 61 | . . 61 . . . 26 13 9 9 2 . Average 27 | . 64 24 . . 53 21 13 10 6 13 . Maximum Alert Level 1 | . 1 . . . . . . . . . . Low Security (%) 98 | 100 90 100 . 100 100 100 100 100 100 100 . Level 1 1 | . 9 . . . . . . . . . . Level 2 . | . . . . . . . . . . . . Level 3 . | . . . . . . . . . . . . Level 4 . | . . . . . . . . . . . . Level 5 . | . . . . . . . . . . . . High Security . | . . . . . . . . . . . . Max Security . | . . . . . . . . . . . . Squads Dispatched 7 | . 1 . . 1 2 2 . . 1 . . Investigation 4 | . 1 . . 1 2 . . . . . . Extermination 1 | . . . . . . 1 . . . . . Reinforcement 2 | . . . . . . 1 . . 1 . . Assault . | . . . . . . . . . . . . Garrison . | . . . . . . . . . . . . Intercept . | . . . . . . . . . . . . Searches Triggered . | . . . . . . . . . . . . Construction Impeded . | . . . . . . . . . . . . Haulers Reinforced . | . . . . . . . . . . . . Active Scanning Responses . | . . . . . . . . . . . . Cargo Convoy Interrupts . | . . . . . . . . . . . . Stealth | -11 -10 -10 -10 -9 -8 -7 -7 -7 -7 -6 -6 --------- Run | Yrd Mat Min Exi Min Mat Fac Was Fac DSF Fac Low Distress Signals 5 | . 4 . . . . 1 . . . . . Communications Jammed . | . . . . . . . . . . . . Distress Signals . | . . . . . . . . . . . . Times Spotted 75 | . 19 12 . . 6 14 . . 5 1 18 Peak Tracking Total 9 | . 5 4 . . 4 4 . . 6 1 9 Tactical Retreats 11 | . 2 . . . . 4 . . . . 5 Traps | -11 -10 -10 -10 -9 -8 -7 -7 -7 -7 -6 -6 ------- Run | Yrd Mat Min Exi Min Mat Fac Was Fac DSF Fac Low Traps Triggered 6 | . 2 . . . . 4 . . . . . Indirectly . | . . . . . . . . . . . . Trap Hack Attempts . | . . . . . . . . . . . . Triggered . | . . . . . . . . . . . . Disarmed . | . . . . . . . . . . . . Reprogrammed . | . . . . . . . . . . . . Reused . | . . . . . . . . . . . . Traps Extracted . | . . . . . . . . . . . . Installed . | . . . . . . . . . . . . Triggered 1 | . . . . . . . . . . . 1 Machines | -11 -10 -10 -10 -9 -8 -7 -7 -7 -7 -6 -6 ---------- Run | Yrd Mat Min Exi Min Mat Fac Was Fac DSF Fac Low Machines Disabled 1 | . 1 . . . . . . . . . . Max in Single Turn 1 | . 1 . . . . . . . . . . Garrison Access 2 | . . . . . . 2 . . . . . Machines Repaired . | . . . . . . . . . . . . Machines Dismantled . | . . . . . . . . . . . . Machines Sabotaged . | . . . . . . . . . . . . Overloaded Fab Kills . | . . . . . . . . . . . . Hacking | -11 -10 -10 -10 -9 -8 -7 -7 -7 -7 -6 -6 --------- Run | Yrd Mat Min Exi Min Mat Fac Was Fac DSF Fac Low Machines Accessed 14 | . 1 . 1 1 1 6 . 2 . 2 . Terminals 7 | . 1 . . . 1 2 . 2 . 1 . Fabricators 2 | . . . . . . 2 . . . . . Repair Stations . | . . . . . . . . . . . . Recycling Units . | . . . . . . . . . . . . Scanalyzers . | . . . . . . . . . . . . Garrison Access 3 | . . . . . . 2 . . . 1 . Total Hacks 20 | . 1 . 1 1 2 11 . 2 . 2 . Successful 14 | . 1 . 1 1 . 8 . 2 . 1 . Failed 6 | . . . . . 2 3 . . . 1 . Catastrophic 2 | . . . . . 1 . . . . 1 . Database Lockouts . | . . . . . . . . . . . . Manual 4 | . 1 . 1 . 2 . . . . . . Terminals 12 | . 1 . . . 2 6 . 2 . 1 . Fabricators 2 | . . . . . . 2 . . . . . Repair Stations . | . . . . . . . . . . . . Recycling Units . | . . . . . . . . . . . . Scanalyzers . | . . . . . . . . . . . . Garrison Access 4 | . . . . . . 3 . . . 1 . Terminal Hacks 10 | . 1 . 1 1 . 4 . 2 . 1 . Record 4 | . . . . . . 2 . 1 . 1 . Open Door 1 | . . . . 1 . . . . . . . Open DSF 1 | . . . . . . . . 1 . . . Emergency Access Points 1 | . . . . . . 1 . . . . . Alert Level 1 | . . . . . . 1 . . . . . Recall Investigation 1 | . 1 . . . . . . . . . . Derelict Proto ID Bank 1 | . . . 1 . . . . . . . . Fabricator Hacks 2 | . . . . . . 2 . . . . . Network Status 1 | . . . . . . 1 . . . . . Build 1 | . . . . . . 1 . . . . . Repair Station Hacks . | . . . . . . . . . . . . Recycling Unit Hacks . | . . . . . . . . . . . . Scanalyzer . | . . . . . . . . . . . . Garrison Access Hacks 2 | . . . . . . 2 . . . . . Seal Access 2 | . . . . . . 2 . . . . . Unauthorized Hacks . | . . . . . . . . . . . . Terminals . | . . . . . . . . . . . . Fabricators . | . . . . . . . . . . . . Repair Stations . | . . . . . . . . . . . . Recycling Units . | . . . . . . . . . . . . Scanalyzers . | . . . . . . . . . . . . Garrison Access . | . . . . . . . . . . . . Data Cores Recovered . | . . . . . . . . . . . . Used . | . . . . . . . . . . . . Hacking Detections 10 | . 1 . . . 1 5 . 1 . 2 . Full Trace Events 1 | . . . . . 1 . . . . . . Feedback Events . | . . . . . . . . . . . . Feedback Blocked . | . . . . . . . . . . . . Robot Schematics Acquired . | . . . . . . . . . . . . Robots Built . | . . . . . . . . . . . . Authchips . | . . . . . . . . . . . . Time . | . . . . . . . . . . . . Total Robot Build Rating . | . . . . . . . . . . . . Part Schematics Acquired . | . . . . . . . . . . . . Parts Built 2 | . . . . . . 2 . . . . . Authchips . | . . . . . . . . . . . . Time 117 | . . . . . . 117 . . . . . Total Part Build Rating 14 | . . . . . . 14 . . . . . Parts Repaired . | . . . . . . . . . . . . Time . | . . . . . . . . . . . . Parts Recycled . | . . . . . . . . . . . . Recycled Matter . | . . . . . . . . . . . . Retrieved Matter . | . . . . . . . . . . . . Retrieved Components . | . . . . . . . . . . . . Parts Scanalyzed . | . . . . . . . . . . . . Part Schematics Acquired . | . . . . . . . . . . . . Parts Damaged . | . . . . . . . . . . . . Bothacking | -11 -10 -10 -10 -9 -8 -7 -7 -7 -7 -6 -6 ------------ Run | Yrd Mat Min Exi Min Mat Fac Was Fac DSF Fac Low Used RIF Installer . | . . . . . . . . . . . . Robots Hacked . | . . . . . . . . . . . . Non-combat . | . . . . . . . . . . . . Combat . | . . . . . . . . . . . . Robot Hacks Applied . | . . . . . . . . . . . . Relay Couplers Released . | . . . . . . . . . . . . Fabnet Peak Effective % . | . . . . . . . . . . . . Robots Rewired . | . . . . . . . . . . . . Allies Hacked . | . . . . . . . . . . . . Hacks Repelled . | . . . . . . . . . . . . Allies | -11 -10 -10 -10 -9 -8 -7 -7 -7 -7 -6 -6 -------- Run | Yrd Mat Min Exi Min Mat Fac Was Fac DSF Fac Low Total Allies 10 | . . 1 . 3 1 3 1 . . . 1 Largest Group 4 | . . 1 . 3 4 3 1 1 . . 1 Highest-Rated Group 165 | . . 31 . 40 50 69 31 31 . . 165 Highest-Rated Ally 165 | . . 31 . 16 16 37 31 31 . . 165 Total Orders 5 | . . . . . . 5 . . . . . STAY 4 | . . . . . . 4 . . . . . FOLLOW 1 | . . . . . . 1 . . . . . Ally Attacks 37 | . . 12 . . 23 2 . . . . . Total Damage 434 | . . 148 . . 268 18 . . . . . Kills 10 | . . 5 . . 5 . . . . . . Allies Corrupted . | . . . . . . . . . . . . Allies Melted . | . . . . . . . . . . . . Field Lobotomies 4 | . . . . . 1 3 . . . . . Intel | -11 -10 -10 -10 -9 -8 -7 -7 -7 -7 -6 -6 ------- Run | Yrd Mat Min Exi Min Mat Fac Was Fac DSF Fac Low Robot Analysis Total . | . . . . . . . . . . . . Derelict Logs Recovered 2 | . . 1 . . . . . . . . 1 Drone Launches . | . . . . . . . . . . . . Drone Recoveries . | . . . . . . . . . . . . Exploration | -11 -10 -10 -10 -9 -8 -7 -7 -7 -7 -6 -6 ------------- Run | Yrd Mat Min Exi Min Mat Fac Was Fac DSF Fac Low Turns Passed 8226 | 81 1190 1343 515 840 544 2289 82 78 46 795 423 Spaces Moved 7530 | 56 660 601 321 424 677 2813 100 180 114 918 666 Core 73 | 19 . . . . . . . . . . 54 Treads 2152 | 37 660 601 321 424 109 . . . . . . Legs . | . . . . . . . . . . . . Wheels . | . . . . . . . . . . . . Hover 5305 | . . . . . 568 2813 100 180 114 918 612 Flight . | . . . . . . . . . . . . Fastest Speed 38 | 50 160 160 160 160 38 38 38 38 38 48 48 Average Speed 75 | 122 160 160 160 160 59 38 38 38 39 50 53 Slowest Speed 170 | 160 160 160 160 160 170 38 38 38 111 51 110 Overloaded Moves . | . . . . . . . . . . . . Propulsion Burnouts . | . . . . . . . . . . . . Robots Hopped . | . . . . . . . . . . . . Cave-ins Triggered 1 | . . . . . . . . . . . 1 Exploration Rate (%) 51 | 4 87 93 62 55 42 44 70 5 74 22 59 Regions Visited 11 Branch Regions 4 Pre-discovered Areas . | . . . . . . . . . . . . Known Exits Taken 2 | . . . . . . . . 1 . 1 . Unknown Exits Taken 6 | 1 1 1 1 1 1 . . . . . . Scrap Searched 2 | . . 1 . 1 . . . . . . . Spaces Dug 41 | . . 4 . . 3 19 . 2 . 8 5 Terrain Destroyed 92 | . 36 19 . . 3 19 . 2 . 8 5 Melee 41 | . . 4 . . 3 19 . 2 . 8 5 Projectile 4 | . . 4 . . . . . . . . . AOE 47 | . 36 11 . . . . . . . . . Terrain Rammed . | . . . . . . . . . . . . Walls Destroyed . | . . . . . . . . . . . . Machines Disabled . | . . . . . . . . . . . . Actions | -11 -10 -10 -10 -9 -8 -7 -7 -7 -7 -6 -6 --------- Run | Yrd Mat Min Exi Min Mat Fac Was Fac DSF Fac Low Total 9891 | 68 753 965 323 586 814 3977 143 186 115 1243 718 Wait 2101 | . 53 342 . 161 100 1070 44 1 . 293 37 Move 7519 | 55 659 600 320 423 676 2813 99 179 113 917 665 Hop . | . . . . . . . . . . . . Pick Up 62 | 7 8 2 1 2 12 19 . 2 . 9 . Fast Attach . | . . . . . . . . . . . . Attach 44 | 6 4 3 1 . 10 6 . . 1 9 4 Detach 6 | . 2 1 . . . . . . 1 1 1 Swap 2 | . . . . . . 1 . . . . 1 Drop 36 | . 1 2 1 . 10 14 . 2 . 6 . Fire 42 | . 26 4 . . 1 7 . . . . 4 Melee 63 | . . 9 . . 5 34 . 2 . 8 5 Ram . | . . . . . . . . . . . . Kick . | . . . . . . . . . . . . Crush 2 | . . 2 . . . . . . . . . Escape Stasis 14 | . . . . . . 13 . . . . 1 Rewire . | . . . . . . . . . . . . Trap . | . . . . . . . . . . . . Miscellaneous . | . . . . . . . . . . . . Route ------- -11/Scrapyard -10/Materials (discovered 4 exits: [*Mat x3] / [*Min]) -10/Mines (discovered 4 exits: [*Mat x2] / *Exi / [*Sub]) -10/Exiles -9/Mines -8/Materials -7/Factory -7/Waste -7/Factory (discovered 2 exits: *Fac / DSF) -7/DSF -6/Factory (discovered 2 exits: *Low / [*Ext]) -6/Lower Caves History --------- Turn | Location | Event 4 | -11/Scrapyard | Discovered new exit (range 16) 82 | -11/Scrapyard | Entered Materials 311 | -10/Materials | Build established: Mutant 486 | -10/Materials | Discovered new exit (range 16) 592 | -10/Materials | Discovered new exit (range 16) 906 | -10/Materials | Discovered new exit (range 8) 1143 | -10/Materials | Discovered new exit (range 7) 1272 | -10/Materials | Entered Mines 1280 | -10/Mines | Learned Materials terminal intel 1530 | -10/Mines | A weapon hastily lodged in a ceiling crevice suddenly fell to the ground 1619 | -10/Mines | Discovered new exit (range 6) 2029 | -10/Mines | Assembled infested the area 2034 | -10/Mines | Assisted by a Guerilla fighting off Assembled 2255 | -10/Mines | Discovered new exit (range 10) 2256 | -10/Mines | Received a Mining Laser from a helpful Derelict 2580 | -10/Mines | Discovered new exit (range 5) 2603 | -10/Mines | Deemed a non-threat by the Exiles lab entrance 2603 | -10/Mines | Discovered new exit (range 6) 2615 | -10/Mines | Entered Exiles 2660 | -10/Exiles | Met 8R-AWN 2694 | -10/Exiles | Met EX-HEX 2769 | -10/Exiles | Met EX-DEC 2796 | -10/Exiles | Met EX-BIN 2838 | -10/Exiles | Aligned with FarCom system 2839 | -10/Exiles | Given EX-Vault access code 2891 | -10/Exiles | Opened EX-Vault 2902 | -10/Exiles | Found Field Lobotomy Kit 2968 | -10/Exiles | Warned to stay clear of 0b10 Research branches 3101 | -10/Exiles | Discovered new exit (range 14) 3130 | -10/Exiles | Left Exiles lab with Field Lobotomy Kit 3130 | -10/Exiles | Entered Mines 3151 | -9/Mines | Assisted by bots powering up and referring to "LRC-V3" 3281 | -9/Mines | Met a Derelict shopkeep closing up shop 3949 | -9/Mines | Discovered new exit (range 9) 3970 | -9/Mines | Entered Materials 3970 | -8/Materials | Accompanied by 3 allies 3970 | -8/Materials | Evolved 4 slots: Propulsion x2, Utility x2 3971 | -8/Materials | Loaded intel: 12 terminal locations 3987 | -8/Materials | Assimilated O-16 Technician with FLK Orb 4418 | -8/Materials | Discovered new exit (range 4) 4514 | -8/Materials | Entered Factory 4514 | -7/Factory | Accompanied by 3 allies 4514 | -7/Factory | Evolved 2 slots: Utility x2 4594 | -7/Factory | Lost 3 allies 4718 | -7/Factory | Build established: Hacker-Mutant 5528 | -7/Factory | Assimilated Y-54 Guardian with FLK Orb 5944 | -7/Factory | Assimilated P-60 Hacker with FLK Orb 6484 | -7/Factory | Fabricated Adv. Power Amplifier? 6491 | -7/Factory | Assimilated P-60 Hacker with FLK Orb 6803 | -7/Factory | Sucked down chute 6803 | -7/Factory | Entered Waste 6803 | -7/Waste | The area was eerily silent 6804 | -7/Waste | Met a frightened Derelict 6830 | -7/Waste | Discovered new exit (range 14) 6885 | -7/Waste | Entered Factory 6885 | -7/Factory | Accompanied by 1 ally 6954 | -7/Factory | Discovered new exit (range 14) 6963 | -7/Factory | Identified exit to DSF 6963 | -7/Factory | Entered DSF 6984 | -7/DSF | Additional patrols routed to DSF 7002 | -7/DSF | Discovered new exit (range 15) 7009 | -7/DSF | Entered Factory 7009 | -6/Factory | Evolved 2 slots: Utility x2 7150 | -6/Factory | Discovered new exit (range 10) 7454 | -6/Factory | Build established: Scout 7587 | -6/Factory | Discovered new exit (range 16) 7596 | -6/Factory | Identified exit to Lower Caves 7804 | -6/Factory | Entered Lower Caves 7825 | -6/Lower Caves | Encountered a Warlord checkpoint 7830 | -6/Lower Caves | Learned Factory terminal intel 8105 | -6/Lower Caves | Crushed by falling debris 8186 | -6/Lower Caves | Lost 7 parts (1p1n3u2w) 8190 | -6/Lower Caves | Attracted the attention of an 0b10 checkpoint 8207 | -6/Lower Caves | Core integrity fell below 50% 8223 | -6/Lower Caves | Core integrity fell below 20% 8227 | -6/Lower Caves | Destroyed by S-27 Virus with Autogun Last Messages --------------- Slug penetrates Wall. Penetrated by Slug. Adv. ECM Suite destroyed. Adv. Power Amplifier destroyed. Critical hit (Burn: +50). Critical hit (Burn: +37). Imp. Deuterium Engine destroyed. System corrupted: Matter fused (-7). C-30 ARC bursts open, deploying its payload. S-27 Virus unfolds itself. Y-54 Guardian: "INTERCEPTING UNREGISTERED DERELICT." System corrupted: Heat flow error (+250). Imp. Terrain Scanner destroyed. Gravmag Array destroyed. Hyb. Deuterium Engine destroyed. Adv. Weight Redist. System destroyed. S-27 Virus destroyed. Adv. Terrain Scan Processor destroyed. Sml. Storage Unit destroyed. A strange signal echoes through the caves. Map ----- +----------------------------------------------------+ | #### ####### #### ### # # | | ##### ######## ###### ## #### | | ##### ######## ##?###### ## # # ### # | | ##### ## ## ######### ### ##### # | | #### ### ######### ########## # | | ### ## ######## ########### | | ######### ####### ###?#?##### | | ## ########### ###### #####??##### | | ### ############ ##### ###?#???#### # | | ### ########### #### ##??###???## # | | ## #####?###### ### ####?#?#### # | | ##??#?#?#### ## ##?######### | | ####?####### # #####?#?######? | | ####???## ## ### # #####???######? | | #####?### ### ## ###?#?####????? | | ########## ####### ####?#?#?#??????? | | # #####?##?## ########### ####??##?##?#?? ? | | # ###?##?################# ######?###??##??? | | # #######??############ ####??#????????? | | ## ####?#? ?#?#??## ?? #?###????? | | #### ?? ??? ###?# ? ?#???????? | | #####? ? ? ???? ?#?# ### ???###?????? | | ####??##??????##?? ###?# ###### ?????????? | | ####??#??#?#??????????# ####### ##?#??????? | | ###????????#?? ?? ### ##??####?#???????? | | ###???#??#???????###### @ ##?#?##?????????? | | #####?#?###???????? ## ####???????????? | | ###??#???#? ???????? ## ###?#??????????? | | ###?###?????? ??????# ### ##????????????? | | ##?##? ?????????? ?## ### #????????????? | | ?##??? ? ?????????## ## #????????????? | | #???#?? ???????????# "%" #????????????? | | ?#????????? ?###??### " #### #????????????? | | ?#?????#????#?# #?### #??# #????????????? | | ?#???#????????# ## ### #????????????? | | ??#??#?###????# ## ##???#???????? | | #?#??????????### #????????????? | | ##??#??#??????### ## #?#??????????? | | ###?????????????# #### ##??#????????? | | #?????????????##??## = #????????????? | | #??????#?????????## %[ #????????????? | | #???????????????## = ##????????????? | | #???????#??##??## ##????????????? | | ###????########### ## ## #??#??#??????? | | ???????# ### ## ###????????????? | | #??????# #?# ## #??????????????? | | #?????## #?# ## ##?????????????? | | #??#### #########?# ## #?????#????????? | | #### #?????????# ## #?#????????????? | | #????#????# ## ###????????????? | +----------------------------------------------------+ Best States ------------- Heat Dissipation 37 Energy Generation 19 Energy Capacity 800 Matter Stores 300 Matter Capacity 300 Sight Range 16 Terrain Scan Range 16 Terrain Scan Density 210 ECM Strength 2 Jamming Range 12 Power Amplification 30 Additional Mass Support 9 Utility Shielding 66 Evasion (%) 57 Targeting Accuracy 5 Recoil Reduction 4 Offensive Hacking 20 Item Schematics ----------------- None Robot Schematics ------------------ None Fabricated ------------ Adv. Power Amplifier | x2 | -7/Factory | Preloaded Alien Tech Used ----------------- None Achievements -------------- I Survived The Infestation Just What I Needed Omniscient Cartographer Part-time Excavator Unlikely Earthworm Challenges ------------ None Game ------ Seed ConcussiveLaserTrident Manual? 0 Play Time 01:13:01 Cumulative 13.8 hours Start 2024.08.18 @ 13:26:15 End 2024.08.25 @ 13:15:39 Sessions 3 Manual Loads 0 Difficulty Rogue Special Mode None Game No. 27 Rogue 27 Adventurer 0 Explorer 0 Win Type - Total 0 Types 0/0/0/0/0/0/0/0/0 Lore% 7 Gallery% 20 Achievement% 16 Wizard Run 0 Options --------- Layout 0 ASCII 0 Keyboard 0 Movement Arrows Keybinds 0 Fullscreen 2 Font 24/Smallcaps Map View 113x50 Zoom Use 27% Tactical HUD 0 Map Filters NONE Filters NONE Steam 1 RUN: 2b3e9081-f10f-420b-b80f-e5770d9d7bd5